Workbook

Sheet A1
D1: برنامج المتابعة الالكترونية التجريبي لحلقة عبد الله بن مسعود | H1: بمكة المكرمة | J1: التابعة لجمعية | K1: تحفيظ القرآن الكريم | N1: نسعى لمواكبة العصر في تطوراته لخدمة كتاب الله عزوجل | R1: 1 | S1: تعليما | T1: 2 | U1: وتعلما | V1: 3 | W1: وتقنيا | X1: على وفق خطة مرسومة | Z1: بالقرآن نرقى وبه نرتقي | AA1: أنشأه: عبد الرحمن إمام
C2: تاريخ بداية الحلقة | D2: معلم الحلقة | K2: عدد أسطر الدرس | L2: =SUM(I10:I29) -> 43 | N2: عدد صفحات الدرس المحفوظ | O2: =L2/15 -> 2.866666667 | Q2: عدد الأخطاء | R2: =SUM(J10:J29) -> 53 | U2: المواظبة | V2: السلوك | X2: نسبة الفصل الأول | Y2: المستوى الحالي | Z2: أبيات التحفة المحفوظة | AA2: معدل الدرجات
C3: 1441/12/18 | K3: عدد أسطر بداية السورة | L3: =SUM(L10:L29) -> 61 | N3: عدد صفحات بداية السورة | O3: =L3/15 -> 4.066666667 | Q3: عدد الأخطاء | R3: =SUM(M10:M29) -> 45 | T3: حضور مبكر | V3: عدد أيام التأخر | X3: =AA3 -> 137.5 | AA3: =AA5/6 -> 137.5
C4: اسم الطالب | D4: A1 | G4: اسم الحلقة | K4: عدد أسطر سورة قبل الدرس | L4: =SUM(O10:O29) -> 52 | N4: عدد صفحات سورة قبل الدرس | O4: =L4/15 -> 3.466666667 | Q4: عدد الأخطاء | R4: =SUM(P10:P29) -> 51 | T4: =COUNTIFS(G10:G29,"ح") -> 0 | V4: =COUNTIF(G10:G29,"ت") -> 0 | X4: نسبة الفصل الثاني | Y4: درجة أخر اختبار | Z4: أبيات الجزرية المحفوظة | AA4: مجموع النقاط
C5: رسالة خاصة بالطالب | G5: عبد الله بن مسعود رضي الله عنه | K5: عدد أسطر المراجعة | L5: =SUM(R10:R29) -> 30 | N5: عدد صفحات المراجعة | O5: =L5/15 -> 2 | Q5: عدد الأخطاء | R5: =SUM(S10:S29) -> 34 | T5: استئذان | V5: عدد أيام الغياب | AA5: =SUM(AA10:AA29) -> 825
C6: رسالة خاصة بالحلقة | G6: وقتها | H6: بعد صلاة العشاء عن بعد | N6: المجموع الكلي لصفحات المراجعة | T6: =COUNTIF(G10:G29,"م") -> 0 | V6: =COUNTIF(G10:G29,"غ") -> 0 | X6: المعدل الكلي | Z6: أبيات الشاطبية المحفوظة | AA6: النقاط المستبدلة
D7: مدة تجربة البرنامج من تاريخ 1442/3/22هـ إلى نهاية الفصل الأول 1442/4/25 هــ | N7: =O5+O4+O3 -> 9.533333333
C8: الأيام | D8: التاريخ | E8: المسار | F8: المقررات | G8: تحضير | H8: الدرس | I8: سطر | J8: خطأ | K8: بداية السورة | L8: سطر | M8: خطأ | N8: سورة قبل الدرس | O8: سطر | P8: خطأ | Q8: المراجعة | R8: سطر | S8: خطأ | T8: ملاحظات في التسميع | U8: الدرس 10 | V8: التجويد 10 | W8: بداية السورة 10 | X8: سورة قبل الدرس 10 | Y8: المراجعة 10 | Z8: المشاركة+ التفاعل 10 | AA8: مجموع النقاط اليومي | AB8: الملاحظات
C10: الاحد | D10: 1442/3/29 | E10: 3 | F10: 1 | G10: 2 | H10: 1 | I10: 3 | J10: 1 | K10: 2 | L10: 0 | M10: 0 | N10: 5 | O10: 3 | P10: 5 | R10: 0 | S10: 0 | U10: 12 | V10: 9 | W10: 11 | X10: 1 | Y10: 1 | Z10: 10 | AA10: =SUM(U10:Z10) -> 44
C11: الاثنين | D11: 1442/4/1 | E11: 0 | F11: 2 | G11: 5 | H11: 1 | I11: 1 | J11: 0 | K11: 3 | L11: 3 | M11: 0 | N11: 5 | O11: 4 | P11: 0 | R11: 1 | S11: 0 | U11: 14 | V11: 4 | W11: 9 | X11: 5 | Y11: 5 | Z11: 0 | AA11: =SUM(U11:Z11) -> 37
C12: الثلاثاء | D12: 1442/4/2 | E12: 4 | F12: 3 | G12: 2 | H12: 1 | I12: 2 | J12: 5 | K12: 5 | L12: 4 | M12: 5 | N12: 4 | O12: 0 | P12: 4 | R12: 2 | S12: 0 | U12: 9 | V12: 7 | W12: 8 | X12: 4 | Y12: 10 | Z12: 9 | AA12: 47
C13: الاربعاء | D13: 1442/4/3 | E13: 2 | F13: 4 | G13: 2 | H13: 3 | I13: 0 | J13: 4 | K13: 2 | L13: 5 | M13: 4 | N13: 4 | O13: 5 | P13: 3 | R13: 2 | S13: 2 | U13: 12 | V13: 12 | W13: 6 | X13: 8 | Y13: 7 | Z13: 3 | AA13: 48
C14: الخميس | D14: 1442/4/4 | E14: 2 | F14: 3 | G14: 3 | H14: 2 | I14: 2 | J14: 5 | K14: 3 | L14: 4 | M14: 1 | N14: 4 | O14: 5 | P14: 4 | R14: 0 | S14: 3 | U14: 2 | V14: 8 | W14: 14 | X14: 10 | Y14: 9 | Z14: 3 | AA14: 46
C15: الاحد | D15: 1442/4/7 | E15: 4 | F15: 0 | G15: 5 | H15: 5 | I15: 2 | J15: 3 | K15: 3 | L15: 2 | M15: 2 | N15: 3 | O15: 1 | P15: 0 | R15: 2 | S15: 3 | U15: 7 | V15: 9 | W15: 5 | X15: 12 | Y15: 1 | Z15: 11 | AA15: 45
C16: الاثنين | D16: 1442/4/8 | E16: 0 | F16: 4 | G16: 2 | H16: 3 | I16: 1 | J16: 3 | K16: 2 | L16: 2 | M16: 0 | N16: 0 | O16: 3 | P16: 3 | R16: 3 | S16: 2 | U16: 3 | V16: 5 | W16: 5 | X16: 6 | Y16: 3 | Z16: 8 | AA16: 30
C17: الثلاثاء | D17: 1442/4/9 | E17: 0 | F17: 2 | G17: 4 | H17: 4 | I17: 1 | J17: 3 | K17: 5 | L17: 3 | M17: 1 | N17: 4 | O17: 0 | P17: 4 | R17: 1 | S17: 3 | U17: 3 | V17: 15 | W17: 5 | X17: 5 | Y17: 14 | Z17: 6 | AA17: 48
C18: الاربعاء | D18: 1442/4/10 | E18: 4 | F18: 3 | G18: 2 | H18: 1 | I18: 1 | J18: 5 | K18: 2 | L18: 5 | M18: 4 | N18: 5 | O18: 4 | P18: 4 | R18: 1 | S18: 1 | U18: 13 | V18: 1 | W18: 1 | X18: 15 | Y18: 3 | Z18: 2 | AA18: 35
C19: الخميس | D19: 1442/4/11 | E19: 4 | F19: 1 | G19: 1 | H19: 3 | I19: 2 | J19: 1 | K19: 4 | L19: 3 | M19: 5 | N19: 1 | O19: 3 | P19: 2 | R19: 1 | S19: 2 | U19: 2 | V19: 11 | W19: 2 | X19: 10 | Y19: 3 | Z19: 12 | AA19: 40
C20: الاحد | D20: 1442/4/14 | E20: 1 | F20: 1 | G20: 1 | H20: 5 | I20: 0 | J20: 0 | K20: 4 | L20: 3 | M20: 5 | N20: 5 | O20: 1 | P20: 1 | R20: 3 | S20: 2 | U20: 15 | V20: 6 | W20: 0 | X20: 8 | Y20: 6 | Z20: 12 | AA20: 47
C21: الاثنين | D21: 1442/4/15 | E21: 0 | F21: 4 | G21: 5 | H21: 2 | I21: 4 | J21: 1 | K21: 2 | L21: 1 | M21: 0 | N21: 1 | O21: 5 | P21: 4 | R21: 3 | S21: 3 | U21: 3 | V21: 3 | W21: 7 | X21: 0 | Y21: 2 | Z21: 6 | AA21: 21
C22: الثلاثاء | D22: 1442/4/16 | E22: 0 | F22: 0 | G22: 3 | H22: 3 | I22: 3 | J22: 2 | K22: 1 | L22: 3 | M22: 1 | N22: 2 | O22: 0 | P22: 2 | R22: 1 | S22: 3 | U22: 3 | V22: 3 | W22: 5 | X22: 1 | Y22: 9 | Z22: 15 | AA22: 36
C23: الاربعاء | D23: 1442/4/17 | E23: 0 | F23: 1 | G23: 1 | H23: 2 | I23: 3 | J23: 5 | K23: 2 | L23: 3 | M23: 0 | N23: 1 | O23: 2 | P23: 0 | R23: 1 | S23: 3 | U23: 14 | V23: 8 | W23: 7 | X23: 12 | Y23: 7 | Z23: 3 | AA23: 51
C24: الخميس | D24: 1442/4/18 | E24: 5 | F24: 2 | G24: 0 | H24: 0 | I24: 2 | J24: 1 | K24: 3 | L24: 2 | M24: 2 | N24: 5 | O24: 5 | P24: 4 | R24: 0 | S24: 1 | U24: 4 | V24: 2 | W24: 11 | X24: 8 | Y24: 4 | Z24: 1 | AA24: 30
C25: الاحد | D25: 1442/4/21 | E25: 5 | F25: 5 | G25: 5 | H25: 2 | I25: 3 | J25: 4 | K25: 3 | L25: 5 | M25: 3 | N25: 2 | O25: 1 | P25: 4 | R25: 3 | S25: 0 | U25: 13 | V25: 9 | W25: 7 | X25: 3 | Y25: 14 | Z25: 11 | AA25: 57
C26: الاثنين | D26: 1442/4/22 | E26: 1 | F26: 0 | G26: 5 | H26: 2 | I26: 1 | J26: 0 | K26: 4 | L26: 1 | M26: 4 | N26: 5 | O26: 1 | P26: 0 | R26: 1 | S26: 1 | U26: 12 | V26: 13 | W26: 3 | X26: 4 | Y26: 10 | Z26: 6 | AA26: 48
C27: الثلاثاء | D27: 1442/4/23 | E27: 4 | F27: 2 | G27: 0 | H27: 3 | I27: 5 | J27: 5 | K27: 3 | L27: 3 | M27: 2 | N27: 3 | O27: 3 | P27: 1 | R27: 0 | S27: 2 | U27: 6 | V27: 1 | W27: 7 | X27: 5 | Y27: 11 | Z27: 4 | AA27: 34
C28: الاربعاء | D28: 1442/4/24 | E28: 3 | F28: 2 | G28: 3 | H28: 1 | I28: 4 | J28: 0 | K28: 3 | L28: 5 | M28: 3 | N28: 4 | O28: 4 | P28: 2 | R28: 3 | S28: 0 | U28: 1 | V28: 9 | W28: 7 | X28: 9 | Y28: 6 | Z28: 10 | AA28: 42
C29: الخميس | D29: 1442/4/25 | E29: 1 | F29: 4 | G29: 3 | H29: 4 | I29: 3 | J29: 5 | K29: 4 | L29: 4 | M29: 3 | N29: 5 | O29: 2 | P29: 4 | R29: 2 | S29: 3 | U29: 7 | V29: 7 | W29: 11 | X29: 1 | Y29: 3 | Z29: 10 | AA29: 39

Sheet A2
D1: برنامج المتابعة الالكترونية التجريبي لحلقة عبد الله بن مسعود | H1: بمكة المكرمة | J1: التابعة لجمعية | K1: تحفيظ القرآن الكريم | N1: نسعى لمواكبة العصر في تطوراته لخدمة كتاب الله عزوجل | R1: 1 | S1: تعليما | T1: 2 | U1: وتعلما | V1: 3 | W1: وتقنيا | X1: على وفق خطة مرسومة | Z1: بالقرآن نرقى وبه نرتقي | AA1: أنشأه: عبد الرحمن إمام
C2: تاريخ بداية الحلقة | D2: معلم الحلقة | K2: عدد أسطر الدرس | L2: =SUM(I10:I29) -> 49 | N2: عدد صفحات الدرس المحفوظ | O2: =L2/15 -> 3.266666667 | Q2: عدد الأخطاء | R2: =SUM(J10:J29) -> 46 | U2: المواظبة | V2: السلوك | X2: نسبة الفصل الأول | Y2: المستوى الحالي | Z2: أبيات التحفة المحفوظة | AA2: معدل الدرجات
C3: 1441/12/18 | K3: عدد أسطر بداية السورة | L3: =SUM(L10:L29) -> 42 | N3: عدد صفحات بداية السورة | O3: =L3/15 -> 2.8 | Q3: عدد الأخطاء | R3: =SUM(M10:M29) -> 55 | T3: حضور مبكر | V3: عدد أيام التأخر | X3: =AA3 -> 163 | AA3: =AA5/6 -> 163
C4: اسم الطالب | D4: A2 | G4: اسم الحلقة | K4: عدد أسطر سورة قبل الدرس | L4: =SUM(O10:O29) -> 53 | N4: عدد صفحات سورة قبل الدرس | O4: =L4/15 -> 3.533333333 | Q4: عدد الأخطاء | R4: =SUM(P10:P29) -> 43 | T4: =COUNTIFS(G10:G29,"ح") -> 0 | V4: =COUNTIF(G10:G29,"ت") -> 0 | X4: نسبة الفصل الثاني | Y4: درجة أخر اختبار | Z4: أبيات الجزرية المحفوظة | AA4: مجموع النقاط
C5: رسالة خاصة بالطالب | G5: عبد الله بن مسعود رضي الله عنه | K5: عدد أسطر المراجعة | L5: =SUM(R10:R29) -> 27 | N5: عدد صفحات المراجعة | O5: =L5/15 -> 1.8 | Q5: عدد الأخطاء | R5: =SUM(S10:S29) -> 28 | T5: استئذان | V5: عدد أيام الغياب | AA5: =SUM(AA10:AA29) -> 978
C6: رسالة خاصة بالحلقة | G6: وقتها | H6: بعد صلاة العشاء عن بعد | N6: المجموع الكلي لصفحات المراجعة | T6: =COUNTIF(G10:G29,"م") -> 0 | V6: =COUNTIF(G10:G29,"غ") -> 0 | X6: المعدل الكلي | Z6: أبيات الشاطبية المحفوظة | AA6: النقاط المستبدلة
D7: مدة تجربة البرنامج من تاريخ 1442/3/22هـ إلى نهاية الفصل الأول 1442/4/25 هــ | N7: =O5+O4+O3 -> 8.133333333
C8: الأيام | D8: التاريخ | E8: المسار | F8: المقررات | G8: تحضير | H8: الدرس | I8: سطر | J8: خطأ | K8: بداية السورة | L8: سطر | M8: خطأ | N8: سورة قبل الدرس | O8: سطر | P8: خطأ | Q8: المراجعة | R8: سطر | S8: خطأ | T8: ملاحظات في التسميع | U8: الدرس 10 | V8: التجويد 10 | W8: بداية السورة 10 | X8: سورة قبل الدرس 10 | Y8: المراجعة 10 | Z8: المشاركة+ التفاعل 10 | AA8: مجموع النقاط اليومي | AB8: الملاحظات
C10: الاحد | D10: 1442/3/29 | E10: 1 | F10: 4 | G10: 2 | H10: 3 | I10: 3 | J10: 1 | K10: 5 | L10: 3 | M10: 3 | N10: 3 | O10: 4 | P10: 1 | R10: 3 | S10: 2 | U10: 9 | V10: 5 | W10: 15 | X10: 3 | Y10: 4 | Z10: 1 | AA10: =SUM(U10:Z10) -> 37
C11: الاثنين | D11: 1442/4/1 | E11: 1 | F11: 4 | G11: 2 | H11: 5 | I11: 2 | J11: 5 | K11: 4 | L11: 1 | M11: 0 | N11: 0 | O11: 5 | P11: 0 | R11: 3 | S11: 3 | U11: 6 | V11: 8 | W11: 9 | X11: 7 | Y11: 1 | Z11: 15 | AA11: =SUM(U11:Z11) -> 46
C12: الثلاثاء | D12: 1442/4/2 | E12: 4 | F12: 5 | G12: 1 | H12: 0 | I12: 4 | J12: 4 | K12: 0 | L12: 0 | M12: 4 | N12: 4 | O12: 5 | P12: 1 | R12: 2 | S12: 3 | U12: 0 | V12: 11 | W12: 15 | X12: 9 | Y12: 8 | Z12: 6 | AA12: 49
C13: الاربعاء | D13: 1442/4/3 | E13: 0 | F13: 5 | G13: 2 | H13: 5 | I13: 3 | J13: 0 | K13: 4 | L13: 3 | M13: 1 | N13: 5 | O13: 1 | P13: 3 | R13: 0 | S13: 2 | U13: 14 | V13: 13 | W13: 13 | X13: 9 | Y13: 0 | Z13: 3 | AA13: 52
C14: الخميس | D14: 1442/4/4 | E14: 1 | F14: 3 | G14: 5 | H14: 2 | I14: 4 | J14: 3 | K14: 3 | L14: 5 | M14: 3 | N14: 1 | O14: 1 | P14: 2 | R14: 2 | S14: 0 | U14: 9 | V14: 4 | W14: 6 | X14: 8 | Y14: 7 | Z14: 2 | AA14: 36
C15: الاحد | D15: 1442/4/7 | E15: 5 | F15: 3 | G15: 0 | H15: 4 | I15: 4 | J15: 5 | K15: 1 | L15: 2 | M15: 4 | N15: 4 | O15: 0 | P15: 5 | R15: 0 | S15: 3 | U15: 12 | V15: 8 | W15: 15 | X15: 14 | Y15: 12 | Z15: 10 | AA15: 71
C16: الاثنين | D16: 1442/4/8 | E16: 2 | F16: 2 | G16: 5 | H16: 1 | I16: 0 | J16: 4 | K16: 0 | L16: 5 | M16: 3 | N16: 4 | O16: 3 | P16: 2 | R16: 3 | S16: 0 | U16: 9 | V16: 2 | W16: 1 | X16: 3 | Y16: 2 | Z16: 11 | AA16: 28
C17: الثلاثاء | D17: 1442/4/9 | E17: 4 | F17: 0 | G17: 4 | H17: 1 | I17: 0 | J17: 2 | K17: 0 | L17: 0 | M17: 4 | N17: 0 | O17: 1 | P17: 0 | R17: 0 | S17: 1 | U17: 10 | V17: 15 | W17: 4 | X17: 14 | Y17: 14 | Z17: 11 | AA17: 68
C18: الاربعاء | D18: 1442/4/10 | E18: 0 | F18: 2 | G18: 2 | H18: 2 | I18: 1 | J18: 0 | K18: 3 | L18: 3 | M18: 0 | N18: 2 | O18: 1 | P18: 0 | R18: 2 | S18: 1 | U18: 12 | V18: 7 | W18: 14 | X18: 15 | Y18: 11 | Z18: 0 | AA18: 59
C19: الخميس | D19: 1442/4/11 | E19: 4 | F19: 0 | G19: 1 | H19: 5 | I19: 5 | J19: 4 | K19: 1 | L19: 2 | M19: 5 | N19: 0 | O19: 3 | P19: 0 | R19: 0 | S19: 3 | U19: 15 | V19: 3 | W19: 5 | X19: 6 | Y19: 7 | Z19: 9 | AA19: 45
C20: الاحد | D20: 1442/4/14 | E20: 4 | F20: 1 | G20: 1 | H20: 4 | I20: 4 | J20: 0 | K20: 3 | L20: 1 | M20: 5 | N20: 4 | O20: 3 | P20: 4 | R20: 0 | S20: 0 | U20: 14 | V20: 15 | W20: 11 | X20: 10 | Y20: 11 | Z20: 4 | AA20: 65
C21: الاثنين | D21: 1442/4/15 | E21: 1 | F21: 5 | G21: 5 | H21: 3 | I21: 5 | J21: 0 | K21: 5 | L21: 4 | M21: 3 | N21: 4 | O21: 4 | P21: 1 | R21: 2 | S21: 2 | U21: 9 | V21: 9 | W21: 15 | X21: 0 | Y21: 11 | Z21: 13 | AA21: 57
C22: الثلاثاء | D22: 1442/4/16 | E22: 2 | F22: 2 | G22: 4 | H22: 2 | I22: 3 | J22: 3 | K22: 1 | L22: 0 | M22: 2 | N22: 5 | O22: 2 | P22: 2 | R22: 0 | S22: 1 | U22: 10 | V22: 15 | W22: 6 | X22: 7 | Y22: 13 | Z22: 0 | AA22: 51
C23: الاربعاء | D23: 1442/4/17 | E23: 2 | F23: 2 | G23: 0 | H23: 4 | I23: 1 | J23: 0 | K23: 0 | L23: 2 | M23: 4 | N23: 0 | O23: 2 | P23: 0 | R23: 1 | S23: 0 | U23: 14 | V23: 15 | W23: 9 | X23: 0 | Y23: 2 | Z23: 14 | AA23: 54
C24: الخميس | D24: 1442/4/18 | E24: 2 | F24: 1 | G24: 1 | H24: 2 | I24: 2 | J24: 4 | K24: 1 | L24: 3 | M24: 3 | N24: 3 | O24: 3 | P24: 2 | R24: 2 | S24: 1 | U24: 13 | V24: 15 | W24: 7 | X24: 3 | Y24: 0 | Z24: 3 | AA24: 41
C25: الاحد | D25: 1442/4/21 | E25: 1 | F25: 0 | G25: 0 | H25: 0 | I25: 5 | J25: 4 | K25: 2 | L25: 2 | M25: 1 | N25: 2 | O25: 4 | P25: 5 | R25: 3 | S25: 0 | U25: 5 | V25: 4 | W25: 5 | X25: 8 | Y25: 11 | Z25: 8 | AA25: 41
C26: الاثنين | D26: 1442/4/22 | E26: 1 | F26: 4 | G26: 5 | H26: 3 | I26: 0 | J26: 4 | K26: 5 | L26: 0 | M26: 3 | N26: 4 | O26: 0 | P26: 3 | R26: 0 | S26: 3 | U26: 2 | V26: 8 | W26: 12 | X26: 9 | Y26: 0 | Z26: 4 | AA26: 35
C27: الثلاثاء | D27: 1442/4/23 | E27: 4 | F27: 0 | G27: 4 | H27: 2 | I27: 1 | J27: 2 | K27: 2 | L27: 1 | M27: 1 | N27: 1 | O27: 5 | P27: 3 | R27: 2 | S27: 0 | U27: 4 | V27: 12 | W27: 0 | X27: 3 | Y27: 15 | Z27: 8 | AA27: 42
C28: الاربعاء | D28: 1442/4/24 | E28: 5 | F28: 4 | G28: 4 | H28: 4 | I28: 1 | J28: 0 | K28: 5 | L28: 3 | M28: 4 | N28: 2 | O28: 2 | P28: 4 | R28: 2 | S28: 2 | U28: 4 | V28: 11 | W28: 6 | X28: 8 | Y28: 15 | Z28: 12 | AA28: 56
C29: الخميس | D29: 1442/4/25 | E29: 4 | F29: 2 | G29: 5 | H29: 2 | I29: 1 | J29: 1 | K29: 5 | L29: 2 | M29: 2 | N29: 5 | O29: 4 | P29: 5 | R29: 0 | S29: 1 | U29: 10 | V29: 2 | W29: 14 | X29: 15 | Y29: 0 | Z29: 4 | AA29: 45

Sheet A3
D1: برنامج المتابعة الالكترونية التجريبي لحلقة عبد الله بن مسعود | H1: بمكة المكرمة | J1: التابعة لجمعية | K1: تحفيظ القرآن الكريم | N1: نسعى لمواكبة العصر في تطوراته لخدمة كتاب الله عزوجل | R1: 1 | S1: تعليما | T1: 2 | U1: وتعلما | V1: 3 | W1: وتقنيا | X1: على وفق خطة مرسومة | Z1: بالقرآن نرقى وبه نرتقي | AA1: أنشأه: عبد الرحمن إمام
C2: تاريخ بداية الحلقة | D2: معلم الحلقة | K2: عدد أسطر الدرس | L2: =SUM(I10:I29) -> 52 | N2: عدد صفحات الدرس المحفوظ | O2: =L2/15 -> 3.466666667 | Q2: عدد الأخطاء | R2: =SUM(J10:J29) -> 49 | U2: المواظبة | V2: السلوك | X2: نسبة الفصل الأول | Y2: المستوى الحالي | Z2: أبيات التحفة المحفوظة | AA2: معدل الدرجات
C3: 1441/12/18 | K3: عدد أسطر بداية السورة | L3: =SUM(L10:L29) -> 56 | N3: عدد صفحات بداية السورة | O3: =L3/15 -> 3.733333333 | Q3: عدد الأخطاء | R3: =SUM(M10:M29) -> 48 | T3: حضور مبكر | V3: عدد أيام التأخر | X3: =AA3 ->  | AA3: =AA5/6 -> 
C4: اسم الطالب | D4: A3 | G4: اسم الحلقة | K4: عدد أسطر سورة قبل الدرس | L4: =SUM(O10:O29) -> 60 | N4: عدد صفحات سورة قبل الدرس | O4: =L4/15 -> 4 | Q4: عدد الأخطاء | R4: =SUM(P10:P29) -> 54 | T4: =COUNTIFS(G10:G29,"ح") -> 0 | V4: =COUNTIF(G10:G29,"ت") -> 0 | X4: نسبة الفصل الثاني | Y4: درجة أخر اختبار | Z4: أبيات الجزرية المحفوظة | AA4: مجموع النقاط
C5: رسالة خاصة بالطالب | G5: عبد الله بن مسعود رضي الله عنه | K5: عدد أسطر المراجعة | L5: =SUM(R10:R29) -> 32 | N5: عدد صفحات المراجعة | O5: =L5/15 -> 2.133333333 | Q5: عدد الأخطاء | R5: =SUM(S10:S29) -> 30 | T5: استئذان | V5: عدد أيام الغياب | AA5: =SUM(AA10:AA29) -> 
C6: رسالة خاصة بالحلقة | G6: وقتها | H6: بعد صلاة العشاء عن بعد | N6: المجموع الكلي لصفحات المراجعة | T6: =COUNTIF(G10:G29,"م") -> 0 | V6: =COUNTIF(G10:G29,"غ") -> 0 | X6: المعدل الكلي | Z6: أبيات الشاطبية المحفوظة | AA6: النقاط المستبدلة
D7: مدة تجربة البرنامج من تاريخ 1442/3/22هـ إلى نهاية الفصل الأول 1442/4/25 هــ | N7: =O5+O4+O3 -> 9.866666667
C8: الأيام | D8: التاريخ | E8: المسار | F8: المقررات | G8: تحضير | H8: الدرس | I8: سطر | J8: خطأ | K8: بداية السورة | L8: سطر | M8: خطأ | N8: سورة قبل الدرس | O8: سطر | P8: خطأ | Q8: المراجعة | R8: سطر | S8: خطأ | T8: ملاحظات في التسميع | U8: الدرس 10 | V8: التجويد 10 | W8: بداية السورة 10 | X8: سورة قبل الدرس 10 | Y8: المراجعة 10 | Z8: المشاركة+ التفاعل 10 | AA8: مجموع النقاط اليومي | AB8: الملاحظات
C10: الاحد | D10: 1442/3/29 | E10: 3 | F10: 3 | G10: 5 | H10: 2 | I10: 1 | J10: 0 | K10: 0 | L10: 1 | M10: 3 | N10: 3 | O10: 3 | P10: 0 | R10: 3 | S10: 2 | U10: 14 | V10: 0 | W10: 2 | X10: 11 | Y10: 11 | Z10: 5 | AA10: =SUM(#REF!) -> 
C11: الاثنين | D11: 1442/4/1 | E11: 2 | F11: 2 | G11: 2 | H11: 3 | I11: 5 | J11: 4 | K11: 4 | L11: 1 | M11: 0 | N11: 4 | O11: 2 | P11: 5 | R11: 2 | S11: 2 | U11: 1 | V11: 3 | W11: 6 | X11: 7 | Y11: 5 | Z11: 1 | AA11: =SUM(U11:Z11) -> 23
C12: الثلاثاء | D12: 1442/4/2 | E12: 2 | F12: 0 | G12: 5 | H12: 0 | I12: 3 | J12: 1 | K12: 2 | L12: 5 | M12: 2 | N12: 5 | O12: 2 | P12: 2 | R12: 0 | S12: 3 | U12: 7 | V12: 2 | W12: 3 | X12: 8 | Y12: 3 | Z12: 12 | AA12: 35
C13: الاربعاء | D13: 1442/4/3 | E13: 3 | F13: 5 | G13: 0 | H13: 4 | I13: 5 | J13: 2 | K13: 1 | L13: 3 | M13: 4 | N13: 0 | O13: 3 | P13: 2 | R13: 1 | S13: 3 | U13: 1 | V13: 4 | W13: 5 | X13: 13 | Y13: 6 | Z13: 6 | AA13: 35
C14: الخميس | D14: 1442/4/4 | E14: 4 | F14: 0 | G14: 1 | H14: 0 | I14: 1 | J14: 2 | K14: 2 | L14: 5 | M14: 1 | N14: 1 | O14: 5 | P14: 4 | R14: 3 | S14: 2 | U14: 6 | V14: 9 | W14: 7 | X14: 7 | Y14: 10 | Z14: 6 | AA14: 45
C15: الاحد | D15: 1442/4/7 | E15: 3 | F15: 0 | G15: 1 | H15: 3 | I15: 2 | J15: 2 | K15: 3 | L15: 0 | M15: 5 | N15: 4 | O15: 3 | P15: 1 | R15: 3 | S15: 3 | U15: 2 | V15: 1 | W15: 14 | X15: 15 | Y15: 13 | Z15: 2 | AA15: 47
C16: الاثنين | D16: 1442/4/8 | E16: 2 | F16: 5 | G16: 5 | H16: 0 | I16: 2 | J16: 3 | K16: 3 | L16: 2 | M16: 0 | N16: 3 | O16: 2 | P16: 2 | R16: 3 | S16: 0 | U16: 1 | V16: 6 | W16: 15 | X16: 6 | Y16: 10 | Z16: 5 | AA16: 43
C17: الثلاثاء | D17: 1442/4/9 | E17: 0 | F17: 2 | G17: 5 | H17: 2 | I17: 4 | J17: 1 | K17: 5 | L17: 4 | M17: 5 | N17: 2 | O17: 3 | P17: 0 | R17: 0 | S17: 0 | U17: 10 | V17: 15 | W17: 10 | X17: 2 | Y17: 10 | Z17: 13 | AA17: 60
C18: الاربعاء | D18: 1442/4/10 | E18: 3 | F18: 2 | G18: 0 | H18: 3 | I18: 1 | J18: 5 | K18: 3 | L18: 0 | M18: 1 | N18: 1 | O18: 4 | P18: 4 | R18: 0 | S18: 0 | U18: 15 | V18: 0 | W18: 3 | X18: 14 | Y18: 0 | Z18: 13 | AA18: 45
C19: الخميس | D19: 1442/4/11 | E19: 3 | F19: 3 | G19: 1 | H19: 0 | I19: 5 | J19: 5 | K19: 0 | L19: 4 | M19: 3 | N19: 5 | O19: 3 | P19: 5 | R19: 1 | S19: 0 | U19: 3 | V19: 6 | W19: 7 | X19: 12 | Y19: 13 | Z19: 3 | AA19: 44
C20: الاحد | D20: 1442/4/14 | E20: 0 | F20: 0 | G20: 0 | H20: 4 | I20: 1 | J20: 2 | K20: 0 | L20: 4 | M20: 0 | N20: 5 | O20: 4 | P20: 0 | R20: 0 | S20: 2 | U20: 14 | V20: 13 | W20: 15 | X20: 10 | Y20: 9 | Z20: 9 | AA20: 70
C21: الاثنين | D21: 1442/4/15 | E21: 3 | F21: 0 | G21: 5 | H21: 5 | I21: 3 | J21: 0 | K21: 4 | L21: 5 | M21: 3 | N21: 3 | O21: 4 | P21: 5 | R21: 1 | S21: 1 | U21: 3 | V21: 9 | W21: 2 | X21: 15 | Y21: 8 | Z21: 6 | AA21: 43
C22: الثلاثاء | D22: 1442/4/16 | E22: 1 | F22: 0 | G22: 0 | H22: 4 | I22: 4 | J22: 4 | K22: 5 | L22: 5 | M22: 0 | N22: 5 | O22: 5 | P22: 3 | R22: 3 | S22: 1 | U22: 6 | V22: 11 | W22: 12 | X22: 0 | Y22: 3 | Z22: 2 | AA22: 34
C23: الاربعاء | D23: 1442/4/17 | E23: 1 | F23: 2 | G23: 3 | H23: 3 | I23: 0 | J23: 1 | K23: 1 | L23: 0 | M23: 1 | N23: 2 | O23: 2 | P23: 5 | R23: 1 | S23: 2 | U23: 14 | V23: 2 | W23: 0 | X23: 7 | Y23: 15 | Z23: 5 | AA23: 43
C24: الخميس | D24: 1442/4/18 | E24: 2 | F24: 3 | G24: 3 | H24: 1 | I24: 2 | J24: 4 | K24: 0 | L24: 5 | M24: 5 | N24: 1 | O24: 1 | P24: 3 | R24: 2 | S24: 2 | U24: 1 | V24: 4 | W24: 6 | X24: 3 | Y24: 0 | Z24: 15 | AA24: 29
C25: الاحد | D25: 1442/4/21 | E25: 5 | F25: 0 | G25: 1 | H25: 2 | I25: 0 | J25: 3 | K25: 4 | L25: 4 | M25: 2 | N25: 0 | O25: 4 | P25: 3 | R25: 3 | S25: 0 | U25: 14 | V25: 1 | W25: 14 | X25: 10 | Y25: 4 | Z25: 7 | AA25: 50
C26: الاثنين | D26: 1442/4/22 | E26: 4 | F26: 4 | G26: 0 | H26: 4 | I26: 4 | J26: 4 | K26: 4 | L26: 0 | M26: 4 | N26: 2 | O26: 1 | P26: 4 | R26: 2 | S26: 2 | U26: 6 | V26: 0 | W26: 11 | X26: 15 | Y26: 10 | Z26: 8 | AA26: 50
C27: الثلاثاء | D27: 1442/4/23 | E27: 5 | F27: 5 | G27: 5 | H27: 4 | I27: 0 | J27: 3 | K27: 0 | L27: 2 | M27: 4 | N27: 4 | O27: 4 | P27: 5 | R27: 3 | S27: 2 | U27: 14 | V27: 8 | W27: 7 | X27: 2 | Y27: 9 | Z27: 8 | AA27: 48
C28: الاربعاء | D28: 1442/4/24 | E28: 4 | F28: 5 | G28: 5 | H28: 0 | I28: 4 | J28: 1 | K28: 4 | L28: 1 | M28: 5 | N28: 3 | O28: 0 | P28: 1 | R28: 0 | S28: 2 | U28: 6 | V28: 14 | W28: 14 | X28: 9 | Y28: 11 | Z28: 12 | AA28: 66
C29: الخميس | D29: 1442/4/25 | E29: 5 | F29: 2 | G29: 4 | H29: 2 | I29: 5 | J29: 2 | K29: 2 | L29: 5 | M29: 0 | N29: 5 | O29: 5 | P29: 0 | R29: 1 | S29: 1 | U29: 13 | V29: 15 | W29: 10 | X29: 9 | Y29: 6 | Z29: 7 | AA29: 60

Sheet A4
D1: برنامج المتابعة الالكترونية التجريبي لحلقة عبد الله بن مسعود | H1: بمكة المكرمة | J1: التابعة لجمعية | K1: تحفيظ القرآن الكريم | N1: نسعى لمواكبة العصر في تطوراته لخدمة كتاب الله عزوجل | R1: 1 | S1: تعليما | T1: 2 | U1: وتعلما | V1: 3 | W1: وتقنيا | X1: على وفق خطة مرسومة | Z1: بالقرآن نرقى وبه نرتقي | AA1: أنشأه: عبد الرحمن إمام
C2: تاريخ بداية الحلقة | D2: معلم الحلقة | K2: عدد أسطر الدرس | L2: =SUM(I10:I29) -> 54 | N2: عدد صفحات الدرس المحفوظ | O2: =L2/15 -> 3.6 | Q2: عدد الأخطاء | R2: =SUM(J10:J29) -> 55 | U2: المواظبة | V2: السلوك | X2: نسبة الفصل الأول | Y2: المستوى الحالي | Z2: أبيات التحفة المحفوظة | AA2: معدل الدرجات
C3: 1441/12/18 | K3: عدد أسطر بداية السورة | L3: =SUM(L10:L29) -> 51 | N3: عدد صفحات بداية السورة | O3: =L3/15 -> 3.4 | Q3: عدد الأخطاء | R3: =SUM(M10:M29) -> 46 | T3: حضور مبكر | V3: عدد أيام التأخر | X3: =AA3 -> 154.1666667 | AA3: =AA5/6 -> 154.1666667
C4: اسم الطالب | D4: A4 | G4: اسم الحلقة | K4: عدد أسطر سورة قبل الدرس | L4: =SUM(O10:O29) -> 44 | N4: عدد صفحات سورة قبل الدرس | O4: =L4/15 -> 2.933333333 | Q4: عدد الأخطاء | R4: =SUM(P10:P29) -> 57 | T4: =COUNTIFS(G10:G29,"ح") -> 0 | V4: =COUNTIF(G10:G29,"ت") -> 0 | X4: نسبة الفصل الثاني | Y4: درجة أخر اختبار | Z4: أبيات الجزرية المحفوظة | AA4: مجموع النقاط
C5: رسالة خاصة بالطالب | G5: عبد الله بن مسعود رضي الله عنه | K5: عدد أسطر المراجعة | L5: =SUM(R10:R29) -> 26 | N5: عدد صفحات المراجعة | O5: =L5/15 -> 1.733333333 | Q5: عدد الأخطاء | R5: =SUM(S10:S29) -> 30 | T5: استئذان | V5: عدد أيام الغياب | AA5: =SUM(AA10:AA29) -> 925
C6: رسالة خاصة بالحلقة | G6: وقتها | H6: بعد صلاة العشاء عن بعد | N6: المجموع الكلي لصفحات المراجعة | T6: =COUNTIF(G10:G29,"م") -> 0 | V6: =COUNTIF(G10:G29,"غ") -> 0 | X6: المعدل الكلي | Z6: أبيات الشاطبية المحفوظة | AA6: النقاط المستبدلة
D7: مدة تجربة البرنامج من تاريخ 1442/3/22هـ إلى نهاية الفصل الأول 1442/4/25 هــ | N7: =O5+O4+O3 -> 8.066666667
C8: الأيام | D8: التاريخ | E8: المسار | F8: المقررات | G8: تحضير | H8: الدرس | I8: سطر | J8: خطأ | K8: بداية السورة | L8: سطر | M8: خطأ | N8: سورة قبل الدرس | O8: سطر | P8: خطأ | Q8: المراجعة | R8: سطر | S8: خطأ | T8: ملاحظات في التسميع | U8: الدرس 10 | V8: التجويد 10 | W8: بداية السورة 10 | X8: سورة قبل الدرس 10 | Y8: المراجعة 10 | Z8: المشاركة+ التفاعل 10 | AA8: مجموع النقاط اليومي | AB8: الملاحظات
C10: الاحد | D10: 1442/3/29 | E10: 4 | F10: 3 | G10: 3 | H10: 5 | I10: 5 | J10: 0 | K10: 2 | L10: 3 | M10: 1 | N10: 5 | O10: 2 | P10: 2 | R10: 0 | S10: 3 | U10: 15 | V10: 3 | W10: 1 | X10: 8 | Y10: 3 | Z10: 5 | AA10: =SUM(U10:Z10) -> 35
C11: الاثنين | D11: 1442/4/1 | E11: 1 | F11: 0 | G11: 3 | H11: 2 | I11: 2 | J11: 4 | K11: 4 | L11: 3 | M11: 4 | N11: 1 | O11: 4 | P11: 5 | R11: 0 | S11: 1 | U11: 12 | V11: 7 | W11: 6 | X11: 14 | Y11: 10 | Z11: 10 | AA11: 59
C12: الثلاثاء | D12: 1442/4/2 | E12: 4 | F12: 3 | G12: 0 | H12: 1 | I12: 1 | J12: 0 | K12: 4 | L12: 2 | M12: 4 | N12: 5 | O12: 5 | P12: 5 | R12: 2 | S12: 0 | U12: 4 | V12: 13 | W12: 0 | X12: 10 | Y12: 8 | Z12: 1 | AA12: 36
C13: الاربعاء | D13: 1442/4/3 | E13: 4 | F13: 1 | G13: 0 | H13: 1 | I13: 3 | J13: 2 | K13: 2 | L13: 2 | M13: 3 | N13: 4 | O13: 5 | P13: 5 | R13: 1 | S13: 1 | U13: 9 | V13: 3 | W13: 3 | X13: 6 | Y13: 3 | Z13: 11 | AA13: 35
C14: الخميس | D14: 1442/4/4 | E14: 2 | F14: 4 | G14: 0 | H14: 4 | I14: 0 | J14: 2 | K14: 3 | L14: 2 | M14: 0 | N14: 5 | O14: 0 | P14: 0 | R14: 0 | S14: 1 | U14: 2 | V14: 1 | W14: 8 | X14: 10 | Y14: 6 | Z14: 14 | AA14: 41
C15: الاحد | D15: 1442/4/7 | E15: 1 | F15: 2 | G15: 2 | H15: 1 | I15: 4 | J15: 1 | K15: 4 | L15: 4 | M15: 0 | N15: 1 | O15: 1 | P15: 5 | R15: 0 | S15: 1 | U15: 0 | V15: 5 | W15: 14 | X15: 14 | Y15: 6 | Z15: 12 | AA15: 51
C16: الاثنين | D16: 1442/4/8 | E16: 4 | F16: 4 | G16: 1 | H16: 1 | I16: 2 | J16: 0 | K16: 3 | L16: 1 | M16: 5 | N16: 2 | O16: 1 | P16: 5 | R16: 2 | S16: 2 | U16: 3 | V16: 5 | W16: 9 | X16: 5 | Y16: 6 | Z16: 13 | AA16: 41
C17: الثلاثاء | D17: 1442/4/9 | E17: 0 | F17: 0 | G17: 0 | H17: 0 | I17: 5 | J17: 2 | K17: 2 | L17: 0 | M17: 1 | N17: 2 | O17: 2 | P17: 3 | R17: 1 | S17: 1 | U17: 12 | V17: 15 | W17: 4 | X17: 4 | Y17: 8 | Z17: 10 | AA17: 53
C18: الاربعاء | D18: 1442/4/10 | E18: 2 | F18: 4 | G18: 2 | H18: 0 | I18: 5 | J18: 2 | K18: 4 | L18: 3 | M18: 4 | N18: 1 | O18: 0 | P18: 2 | R18: 0 | S18: 2 | U18: 6 | V18: 6 | W18: 9 | X18: 10 | Y18: 14 | Z18: 14 | AA18: 59
C19: الخميس | D19: 1442/4/11 | E19: 4 | F19: 2 | G19: 2 | H19: 5 | I19: 3 | J19: 3 | K19: 2 | L19: 5 | M19: 3 | N19: 1 | O19: 0 | P19: 1 | R19: 2 | S19: 3 | U19: 14 | V19: 0 | W19: 15 | X19: 9 | Y19: 12 | Z19: 11 | AA19: 61
C20: الاحد | D20: 1442/4/14 | E20: 1 | F20: 3 | G20: 3 | H20: 0 | I20: 2 | J20: 5 | K20: 0 | L20: 0 | M20: 0 | N20: 2 | O20: 5 | P20: 5 | R20: 3 | S20: 0 | U20: 1 | V20: 2 | W20: 4 | X20: 1 | Y20: 14 | Z20: 10 | AA20: 32
C21: الاثنين | D21: 1442/4/15 | E21: 0 | F21: 0 | G21: 4 | H21: 1 | I21: 1 | J21: 0 | K21: 0 | L21: 2 | M21: 3 | N21: 5 | O21: 1 | P21: 0 | R21: 2 | S21: 3 | U21: 1 | V21: 11 | W21: 0 | X21: 12 | Y21: 0 | Z21: 14 | AA21: 38
C22: الثلاثاء | D22: 1442/4/16 | E22: 4 | F22: 3 | G22: 0 | H22: 3 | I22: 0 | J22: 4 | K22: 5 | L22: 4 | M22: 0 | N22: 4 | O22: 2 | P22: 4 | R22: 0 | S22: 0 | U22: 7 | V22: 12 | W22: 13 | X22: 10 | Y22: 8 | Z22: 6 | AA22: 56
C23: الاربعاء | D23: 1442/4/17 | E23: 2 | F23: 1 | G23: 0 | H23: 0 | I23: 1 | J23: 3 | K23: 0 | L23: 4 | M23: 5 | N23: 2 | O23: 3 | P23: 1 | R23: 0 | S23: 1 | U23: 0 | V23: 11 | W23: 5 | X23: 15 | Y23: 15 | Z23: 4 | AA23: 50
C24: الخميس | D24: 1442/4/18 | E24: 1 | F24: 3 | G24: 5 | H24: 1 | I24: 3 | J24: 5 | K24: 2 | L24: 1 | M24: 4 | N24: 1 | O24: 3 | P24: 1 | R24: 3 | S24: 1 | U24: 12 | V24: 3 | W24: 2 | X24: 9 | Y24: 15 | Z24: 9 | AA24: 50
C25: الاحد | D25: 1442/4/21 | E25: 4 | F25: 2 | G25: 3 | H25: 0 | I25: 2 | J25: 4 | K25: 5 | L25: 3 | M25: 0 | N25: 5 | O25: 2 | P25: 0 | R25: 3 | S25: 2 | U25: 10 | V25: 11 | W25: 7 | X25: 10 | Y25: 1 | Z25: 0 | AA25: 39
C26: الاثنين | D26: 1442/4/22 | E26: 1 | F26: 3 | G26: 1 | H26: 3 | I26: 4 | J26: 5 | K26: 1 | L26: 3 | M26: 4 | N26: 2 | O26: 5 | P26: 2 | R26: 0 | S26: 1 | U26: 12 | V26: 13 | W26: 14 | X26: 8 | Y26: 4 | Z26: 5 | AA26: 56
C27: الثلاثاء | D27: 1442/4/23 | E27: 5 | F27: 3 | G27: 1 | H27: 2 | I27: 2 | J27: 5 | K27: 2 | L27: 1 | M27: 0 | N27: 4 | O27: 1 | P27: 2 | R27: 3 | S27: 3 | U27: 0 | V27: 3 | W27: 4 | X27: 9 | Y27: 10 | Z27: 14 | AA27: 40
C28: الاربعاء | D28: 1442/4/24 | E28: 4 | F28: 2 | G28: 2 | H28: 4 | I28: 5 | J28: 4 | K28: 2 | L28: 5 | M28: 4 | N28: 4 | O28: 2 | P28: 4 | R28: 2 | S28: 1 | U28: 5 | V28: 9 | W28: 15 | X28: 1 | Y28: 0 | Z28: 4 | AA28: 34
C29: الخميس | D29: 1442/4/25 | E29: 4 | F29: 3 | G29: 2 | H29: 5 | I29: 4 | J29: 4 | K29: 5 | L29: 3 | M29: 1 | N29: 3 | O29: 0 | P29: 5 | R29: 2 | S29: 3 | U29: 14 | V29: 13 | W29: 7 | X29: 15 | Y29: 4 | Z29: 6 | AA29: 59

Sheet A5
D1: برنامج المتابعة الالكترونية التجريبي لحلقة عبد الله بن مسعود | H1: بمكة المكرمة | J1: التابعة لجمعية | K1: تحفيظ القرآن الكريم | N1: نسعى لمواكبة العصر في تطوراته لخدمة كتاب الله عزوجل | R1: 1 | S1: تعليما | T1: 2 | U1: وتعلما | V1: 3 | W1: وتقنيا | X1: على وفق خطة مرسومة | Z1: بالقرآن نرقى وبه نرتقي | AA1: أنشأه: عبد الرحمن إمام
C2: تاريخ بداية الحلقة | D2: معلم الحلقة | K2: عدد أسطر الدرس | L2: =SUM(I10:I29) -> 39 | N2: عدد صفحات الدرس المحفوظ | O2: =L2/15 -> 2.6 | Q2: عدد الأخطاء | R2: =SUM(J10:J29) -> 54 | U2: المواظبة | V2: السلوك | X2: نسبة الفصل الأول | Y2: المستوى الحالي | Z2: أبيات التحفة المحفوظة | AA2: معدل الدرجات
C3: 1441/12/18 | K3: عدد أسطر بداية السورة | L3: =SUM(L10:L29) -> 56 | N3: عدد صفحات بداية السورة | O3: =L3/15 -> 3.733333333 | Q3: عدد الأخطاء | R3: =SUM(M10:M29) -> 41 | T3: حضور مبكر | V3: عدد أيام التأخر | X3: =AA3 -> 151.5 | AA3: =AA5/6 -> 151.5
C4: اسم الطالب | D4: A5 | G4: اسم الحلقة | K4: عدد أسطر سورة قبل الدرس | L4: =SUM(O10:O29) -> 37 | N4: عدد صفحات سورة قبل الدرس | O4: =L4/15 -> 2.466666667 | Q4: عدد الأخطاء | R4: =SUM(P10:P29) -> 42 | T4: =COUNTIFS(G10:G29,"ح") -> 0 | V4: =COUNTIF(G10:G29,"ت") -> 0 | X4: نسبة الفصل الثاني | Y4: درجة أخر اختبار | Z4: أبيات الجزرية المحفوظة | AA4: مجموع النقاط
C5: رسالة خاصة بالطالب | G5: عبد الله بن مسعود رضي الله عنه | K5: عدد أسطر المراجعة | L5: =SUM(R10:R29) -> 35 | N5: عدد صفحات المراجعة | O5: =L5/15 -> 2.333333333 | Q5: عدد الأخطاء | R5: =SUM(S10:S29) -> 27 | T5: استئذان | V5: عدد أيام الغياب | AA5: =SUM(AA10:AA29) -> 909
C6: رسالة خاصة بالحلقة | G6: وقتها | H6: بعد صلاة العشاء عن بعد | N6: المجموع الكلي لصفحات المراجعة | T6: =COUNTIF(G10:G29,"م") -> 0 | V6: =COUNTIF(G10:G29,"غ") -> 0 | X6: المعدل الكلي | Z6: أبيات الشاطبية المحفوظة | AA6: النقاط المستبدلة
D7: مدة تجربة البرنامج من تاريخ 1442/3/22هـ إلى نهاية الفصل الأول 1442/4/25 هــ | N7: =O5+O4+O3 -> 8.533333333
C8: الأيام | D8: التاريخ | E8: المسار | F8: المقررات | G8: تحضير | H8: الدرس | I8: سطر | J8: خطأ | K8: بداية السورة | L8: سطر | M8: خطأ | N8: سورة قبل الدرس | O8: سطر | P8: خطأ | Q8: المراجعة | R8: سطر | S8: خطأ | T8: ملاحظات في التسميع | U8: الدرس 10 | V8: التجويد 10 | W8: بداية السورة 10 | X8: سورة قبل الدرس 10 | Y8: المراجعة 10 | Z8: المشاركة+ التفاعل 10 | AA8: مجموع النقاط اليومي | AB8: الملاحظات
C10: الاحد | D10: 1442/3/29 | E10: 2 | F10: 2 | G10: 4 | H10: 3 | I10: 2 | J10: 3 | K10: 3 | L10: 0 | M10: 0 | N10: 0 | O10: 1 | P10: 2 | R10: 2 | S10: 1 | U10: 0 | V10: 15 | W10: 12 | X10: 7 | Y10: 13 | Z10: 0 | AA10: =SUM(U10:Z10) -> 47
C11: الاثنين | D11: 1442/4/1 | E11: 3 | F11: 5 | G11: 3 | H11: 1 | I11: 0 | J11: 4 | K11: 4 | L11: 5 | M11: 2 | N11: 3 | O11: 1 | P11: 5 | R11: 1 | S11: 3 | U11: 3 | V11: 1 | W11: 0 | X11: 8 | Y11: 12 | Z11: 14 | AA11: 38
C12: الثلاثاء | D12: 1442/4/2 | E12: 0 | F12: 1 | G12: 3 | H12: 2 | I12: 2 | J12: 1 | K12: 5 | L12: 1 | M12: 3 | N12: 4 | O12: 2 | P12: 4 | R12: 2 | S12: 1 | U12: 11 | V12: 2 | W12: 3 | X12: 14 | Y12: 14 | Z12: 7 | AA12: 51
C13: الاربعاء | D13: 1442/4/3 | E13: 3 | F13: 0 | G13: 0 | H13: 3 | I13: 0 | J13: 4 | K13: 2 | L13: 4 | M13: 4 | N13: 2 | O13: 2 | P13: 1 | R13: 0 | S13: 3 | U13: 15 | V13: 14 | W13: 2 | X13: 15 | Y13: 4 | Z13: 13 | AA13: 63
C14: الخميس | D14: 1442/4/4 | E14: 1 | F14: 1 | G14: 0 | H14: 3 | I14: 2 | J14: 1 | K14: 4 | L14: 5 | M14: 4 | N14: 1 | O14: 1 | P14: 1 | R14: 3 | S14: 2 | U14: 3 | V14: 4 | W14: 3 | X14: 7 | Y14: 8 | Z14: 1 | AA14: 26
C15: الاحد | D15: 1442/4/7 | E15: 3 | F15: 3 | G15: 0 | H15: 5 | I15: 1 | J15: 3 | K15: 0 | L15: 3 | M15: 0 | N15: 0 | O15: 2 | P15: 5 | R15: 3 | S15: 0 | U15: 4 | V15: 2 | W15: 1 | X15: 5 | Y15: 10 | Z15: 10 | AA15: 32
C16: الاثنين | D16: 1442/4/8 | E16: 0 | F16: 5 | G16: 3 | H16: 5 | I16: 2 | J16: 0 | K16: 2 | L16: 0 | M16: 2 | N16: 2 | O16: 1 | P16: 0 | R16: 3 | S16: 0 | U16: 7 | V16: 6 | W16: 5 | X16: 1 | Y16: 8 | Z16: 6 | AA16: 33
C17: الثلاثاء | D17: 1442/4/9 | E17: 2 | F17: 1 | G17: 5 | H17: 2 | I17: 0 | J17: 2 | K17: 1 | L17: 5 | M17: 0 | N17: 5 | O17: 1 | P17: 3 | R17: 3 | S17: 2 | U17: 12 | V17: 12 | W17: 0 | X17: 12 | Y17: 9 | Z17: 1 | AA17: 46
C18: الاربعاء | D18: 1442/4/10 | E18: 2 | F18: 4 | G18: 4 | H18: 4 | I18: 4 | J18: 5 | K18: 0 | L18: 5 | M18: 4 | N18: 0 | O18: 3 | P18: 2 | R18: 2 | S18: 3 | U18: 0 | V18: 7 | W18: 4 | X18: 0 | Y18: 3 | Z18: 11 | AA18: 25
C19: الخميس | D19: 1442/4/11 | E19: 0 | F19: 4 | G19: 1 | H19: 0 | I19: 5 | J19: 3 | K19: 0 | L19: 1 | M19: 1 | N19: 2 | O19: 0 | P19: 0 | R19: 3 | S19: 0 | U19: 9 | V19: 2 | W19: 0 | X19: 14 | Y19: 3 | Z19: 13 | AA19: 41
C20: الاحد | D20: 1442/4/14 | E20: 3 | F20: 3 | G20: 3 | H20: 1 | I20: 4 | J20: 3 | K20: 2 | L20: 3 | M20: 0 | N20: 1 | O20: 2 | P20: 1 | R20: 1 | S20: 0 | U20: 2 | V20: 5 | W20: 7 | X20: 12 | Y20: 14 | Z20: 4 | AA20: 44
C21: الاثنين | D21: 1442/4/15 | E21: 5 | F21: 5 | G21: 2 | H21: 2 | I21: 2 | J21: 4 | K21: 4 | L21: 2 | M21: 1 | N21: 2 | O21: 4 | P21: 1 | R21: 3 | S21: 0 | U21: 14 | V21: 2 | W21: 14 | X21: 3 | Y21: 10 | Z21: 7 | AA21: 50
C22: الثلاثاء | D22: 1442/4/16 | E22: 2 | F22: 2 | G22: 3 | H22: 4 | I22: 1 | J22: 4 | K22: 2 | L22: 5 | M22: 5 | N22: 1 | O22: 2 | P22: 5 | R22: 3 | S22: 1 | U22: 2 | V22: 11 | W22: 13 | X22: 7 | Y22: 11 | Z22: 12 | AA22: 56
C23: الاربعاء | D23: 1442/4/17 | E23: 0 | F23: 5 | G23: 0 | H23: 5 | I23: 0 | J23: 1 | K23: 1 | L23: 1 | M23: 4 | N23: 1 | O23: 1 | P23: 0 | R23: 3 | S23: 3 | U23: 8 | V23: 9 | W23: 9 | X23: 3 | Y23: 2 | Z23: 13 | AA23: 44
C24: الخميس | D24: 1442/4/18 | E24: 4 | F24: 5 | G24: 4 | H24: 0 | I24: 5 | J24: 2 | K24: 4 | L24: 2 | M24: 0 | N24: 2 | O24: 3 | P24: 4 | R24: 1 | S24: 2 | U24: 9 | V24: 3 | W24: 5 | X24: 11 | Y24: 15 | Z24: 11 | AA24: 54
C25: الاحد | D25: 1442/4/21 | E25: 3 | F25: 0 | G25: 4 | H25: 0 | I25: 0 | J25: 4 | K25: 4 | L25: 0 | M25: 2 | N25: 1 | O25: 1 | P25: 2 | R25: 0 | S25: 1 | U25: 8 | V25: 14 | W25: 13 | X25: 13 | Y25: 1 | Z25: 0 | AA25: 49
C26: الاثنين | D26: 1442/4/22 | E26: 0 | F26: 3 | G26: 3 | H26: 3 | I26: 3 | J26: 2 | K26: 2 | L26: 5 | M26: 4 | N26: 2 | O26: 2 | P26: 2 | R26: 1 | S26: 3 | U26: 11 | V26: 0 | W26: 4 | X26: 14 | Y26: 11 | Z26: 15 | AA26: 55
C27: الثلاثاء | D27: 1442/4/23 | E27: 0 | F27: 2 | G27: 3 | H27: 1 | I27: 1 | J27: 5 | K27: 3 | L27: 5 | M27: 3 | N27: 3 | O27: 1 | P27: 0 | R27: 0 | S27: 1 | U27: 15 | V27: 11 | W27: 7 | X27: 1 | Y27: 7 | Z27: 12 | AA27: 53
C28: الاربعاء | D28: 1442/4/24 | E28: 5 | F28: 2 | G28: 4 | H28: 5 | I28: 4 | J28: 3 | K28: 5 | L28: 4 | M28: 1 | N28: 4 | O28: 2 | P28: 1 | R28: 0 | S28: 1 | U28: 12 | V28: 12 | W28: 3 | X28: 15 | Y28: 9 | Z28: 4 | AA28: 55
C29: الخميس | D29: 1442/4/25 | E29: 2 | F29: 0 | G29: 0 | H29: 2 | I29: 1 | J29: 0 | K29: 0 | L29: 0 | M29: 1 | N29: 0 | O29: 5 | P29: 3 | R29: 1 | S29: 0 | U29: 12 | V29: 4 | W29: 3 | X29: 10 | Y29: 13 | Z29: 5 | AA29: 47

Sheet A6
D1: برنامج المتابعة الالكترونية التجريبي لحلقة عبد الله بن مسعود | H1: بمكة المكرمة | J1: التابعة لجمعية | K1: تحفيظ القرآن الكريم | N1: نسعى لمواكبة العصر في تطوراته لخدمة كتاب الله عزوجل | R1: 1 | S1: تعليما | T1: 2 | U1: وتعلما | V1: 3 | W1: وتقنيا | X1: على وفق خطة مرسومة | Z1: بالقرآن نرقى وبه نرتقي | AA1: أنشأه: عبد الرحمن إمام
C2: تاريخ بداية الحلقة | D2: معلم الحلقة | K2: عدد أسطر الدرس | L2: =SUM(I10:I29) -> 56 | N2: عدد صفحات الدرس المحفوظ | O2: =L2/15 -> 3.733333333 | Q2: عدد الأخطاء | R2: =SUM(J10:J29) -> 48 | U2: المواظبة | V2: السلوك | X2: نسبة الفصل الأول | Y2: المستوى الحالي | Z2: أبيات التحفة المحفوظة | AA2: معدل الدرجات
C3: 1441/12/18 | K3: عدد أسطر بداية السورة | L3: =SUM(L10:L29) -> 57 | N3: عدد صفحات بداية السورة | O3: =L3/15 -> 3.8 | Q3: عدد الأخطاء | R3: =SUM(M10:M29) -> 41 | T3: حضور مبكر | V3: عدد أيام التأخر | X3: =AA3 -> 145.3333333 | AA3: =AA5/6 -> 145.3333333
C4: اسم الطالب | D4: A6 | G4: اسم الحلقة | K4: عدد أسطر سورة قبل الدرس | L4: =SUM(O10:O29) -> 60 | N4: عدد صفحات سورة قبل الدرس | O4: =L4/15 -> 4 | Q4: عدد الأخطاء | R4: =SUM(P10:P29) -> 49 | T4: =COUNTIFS(G10:G29,"ح") -> 0 | V4: =COUNTIF(G10:G29,"ت") -> 0 | X4: نسبة الفصل الثاني | Y4: درجة أخر اختبار | Z4: أبيات الجزرية المحفوظة | AA4: مجموع النقاط
C5: رسالة خاصة بالطالب | G5: عبد الله بن مسعود رضي الله عنه | K5: عدد أسطر المراجعة | L5: =SUM(R10:R29) -> 28 | N5: عدد صفحات المراجعة | O5: =L5/15 -> 1.866666667 | Q5: عدد الأخطاء | R5: =SUM(S10:S29) -> 34 | T5: استئذان | V5: عدد أيام الغياب | AA5: =SUM(AA10:AA29) -> 872
C6: رسالة خاصة بالحلقة | G6: وقتها | H6: بعد صلاة العشاء عن بعد | N6: المجموع الكلي لصفحات المراجعة | T6: =COUNTIF(G10:G29,"م") -> 0 | V6: =COUNTIF(G10:G29,"غ") -> 0 | X6: المعدل الكلي | Z6: أبيات الشاطبية المحفوظة | AA6: النقاط المستبدلة
D7: مدة تجربة البرنامج من تاريخ 1442/3/22هـ إلى نهاية الفصل الأول 1442/4/25 هــ | N7: =O5+O4+O3 -> 9.666666667
C8: الأيام | D8: التاريخ | E8: المسار | F8: المقررات | G8: تحضير | H8: الدرس | I8: سطر | J8: خطأ | K8: بداية السورة | L8: سطر | M8: خطأ | N8: سورة قبل الدرس | O8: سطر | P8: خطأ | Q8: المراجعة | R8: سطر | S8: خطأ | T8: ملاحظات في التسميع | U8: الدرس 10 | V8: التجويد 10 | W8: بداية السورة 10 | X8: سورة قبل الدرس 10 | Y8: المراجعة 10 | Z8: المشاركة+ التفاعل 10 | AA8: مجموع النقاط اليومي | AB8: الملاحظات
C10: الاحد | D10: 1442/3/29 | E10: 5 | F10: 1 | G10: 4 | H10: 3 | I10: 1 | J10: 2 | K10: 1 | L10: 0 | M10: 3 | N10: 1 | O10: 0 | P10: 1 | R10: 2 | S10: 3 | U10: 8 | V10: 6 | W10: 12 | X10: 2 | Y10: 2 | Z10: 15 | AA10: =SUM(U10:Z10) -> 45
C11: الاثنين | D11: 1442/4/1 | E11: 0 | F11: 0 | G11: 2 | H11: 0 | I11: 5 | J11: 2 | K11: 2 | L11: 5 | M11: 4 | N11: 0 | O11: 5 | P11: 5 | R11: 3 | S11: 0 | U11: 5 | V11: 5 | W11: 12 | X11: 4 | Y11: 0 | Z11: 2 | AA11: 28
C12: الثلاثاء | D12: 1442/4/2 | E12: 0 | F12: 2 | G12: 5 | H12: 2 | I12: 4 | J12: 0 | K12: 4 | L12: 3 | M12: 2 | N12: 5 | O12: 4 | P12: 5 | R12: 3 | S12: 1 | U12: 0 | V12: 11 | W12: 12 | X12: 13 | Y12: 0 | Z12: 14 | AA12: 50
C13: الاربعاء | D13: 1442/4/3 | E13: 1 | F13: 1 | G13: 0 | H13: 0 | I13: 5 | J13: 3 | K13: 4 | L13: 2 | M13: 3 | N13: 5 | O13: 3 | P13: 2 | R13: 3 | S13: 3 | U13: 9 | V13: 11 | W13: 0 | X13: 0 | Y13: 0 | Z13: 9 | AA13: 29
C14: الخميس | D14: 1442/4/4 | E14: 3 | F14: 2 | G14: 2 | H14: 0 | I14: 2 | J14: 0 | K14: 2 | L14: 3 | M14: 2 | N14: 0 | O14: 5 | P14: 3 | R14: 1 | S14: 0 | U14: 11 | V14: 6 | W14: 15 | X14: 0 | Y14: 14 | Z14: 1 | AA14: 47
C15: الاحد | D15: 1442/4/7 | E15: 1 | F15: 2 | G15: 2 | H15: 5 | I15: 2 | J15: 3 | K15: 3 | L15: 4 | M15: 2 | N15: 2 | O15: 4 | P15: 1 | R15: 3 | S15: 1 | U15: 11 | V15: 10 | W15: 5 | X15: 9 | Y15: 14 | Z15: 15 | AA15: 64
C16: الاثنين | D16: 1442/4/8 | E16: 4 | F16: 3 | G16: 2 | H16: 5 | I16: 1 | J16: 5 | K16: 5 | L16: 3 | M16: 4 | N16: 4 | O16: 0 | P16: 1 | R16: 0 | S16: 2 | U16: 3 | V16: 0 | W16: 3 | X16: 4 | Y16: 5 | Z16: 1 | AA16: 16
C17: الثلاثاء | D17: 1442/4/9 | E17: 3 | F17: 0 | G17: 2 | H17: 5 | I17: 0 | J17: 2 | K17: 2 | L17: 4 | M17: 0 | N17: 1 | O17: 0 | P17: 2 | R17: 1 | S17: 2 | U17: 11 | V17: 15 | W17: 13 | X17: 0 | Y17: 3 | Z17: 13 | AA17: 55
C18: الاربعاء | D18: 1442/4/10 | E18: 5 | F18: 2 | G18: 3 | H18: 4 | I18: 4 | J18: 4 | K18: 3 | L18: 1 | M18: 3 | N18: 1 | O18: 5 | P18: 3 | R18: 0 | S18: 3 | U18: 2 | V18: 8 | W18: 4 | X18: 10 | Y18: 2 | Z18: 0 | AA18: 26
C19: الخميس | D19: 1442/4/11 | E19: 4 | F19: 2 | G19: 3 | H19: 3 | I19: 5 | J19: 0 | K19: 0 | L19: 3 | M19: 2 | N19: 1 | O19: 2 | P19: 5 | R19: 0 | S19: 1 | U19: 9 | V19: 5 | W19: 8 | X19: 10 | Y19: 8 | Z19: 15 | AA19: 55
C20: الاحد | D20: 1442/4/14 | E20: 3 | F20: 0 | G20: 5 | H20: 4 | I20: 5 | J20: 2 | K20: 2 | L20: 3 | M20: 0 | N20: 2 | O20: 4 | P20: 0 | R20: 1 | S20: 3 | U20: 10 | V20: 8 | W20: 14 | X20: 6 | Y20: 2 | Z20: 8 | AA20: 48
C21: الاثنين | D21: 1442/4/15 | E21: 4 | F21: 0 | G21: 3 | H21: 4 | I21: 4 | J21: 3 | K21: 1 | L21: 3 | M21: 1 | N21: 2 | O21: 2 | P21: 1 | R21: 1 | S21: 2 | U21: 9 | V21: 4 | W21: 1 | X21: 10 | Y21: 13 | Z21: 13 | AA21: 50
C22: الثلاثاء | D22: 1442/4/16 | E22: 3 | F22: 3 | G22: 3 | H22: 2 | I22: 4 | J22: 5 | K22: 5 | L22: 2 | M22: 3 | N22: 1 | O22: 0 | P22: 1 | R22: 1 | S22: 3 | U22: 2 | V22: 11 | W22: 13 | X22: 13 | Y22: 4 | Z22: 5 | AA22: 48
C23: الاربعاء | D23: 1442/4/17 | E23: 0 | F23: 3 | G23: 5 | H23: 4 | I23: 3 | J23: 3 | K23: 0 | L23: 1 | M23: 0 | N23: 2 | O23: 5 | P23: 0 | R23: 1 | S23: 2 | U23: 13 | V23: 2 | W23: 8 | X23: 0 | Y23: 4 | Z23: 3 | AA23: 30
C24: الخميس | D24: 1442/4/18 | E24: 5 | F24: 1 | G24: 0 | H24: 0 | I24: 4 | J24: 3 | K24: 1 | L24: 1 | M24: 0 | N24: 5 | O24: 5 | P24: 0 | R24: 3 | S24: 1 | U24: 3 | V24: 0 | W24: 0 | X24: 13 | Y24: 14 | Z24: 12 | AA24: 42
C25: الاحد | D25: 1442/4/21 | E25: 0 | F25: 5 | G25: 5 | H25: 0 | I25: 0 | J25: 3 | K25: 2 | L25: 2 | M25: 5 | N25: 2 | O25: 3 | P25: 0 | R25: 1 | S25: 2 | U25: 11 | V25: 6 | W25: 0 | X25: 13 | Y25: 3 | Z25: 0 | AA25: 33
C26: الاثنين | D26: 1442/4/22 | E26: 0 | F26: 1 | G26: 0 | H26: 3 | I26: 2 | J26: 0 | K26: 1 | L26: 5 | M26: 4 | N26: 0 | O26: 3 | P26: 5 | R26: 3 | S26: 0 | U26: 8 | V26: 14 | W26: 3 | X26: 4 | Y26: 10 | Z26: 1 | AA26: 40
C27: الثلاثاء | D27: 1442/4/23 | E27: 1 | F27: 1 | G27: 3 | H27: 0 | I27: 0 | J27: 3 | K27: 1 | L27: 5 | M27: 2 | N27: 0 | O27: 4 | P27: 5 | R27: 0 | S27: 1 | U27: 11 | V27: 12 | W27: 9 | X27: 12 | Y27: 15 | Z27: 8 | AA27: 67
C28: الاربعاء | D28: 1442/4/24 | E28: 3 | F28: 0 | G28: 1 | H28: 5 | I28: 5 | J28: 0 | K28: 5 | L28: 5 | M28: 0 | N28: 0 | O28: 5 | P28: 5 | R28: 1 | S28: 1 | U28: 7 | V28: 5 | W28: 13 | X28: 15 | Y28: 14 | Z28: 1 | AA28: 55
C29: الخميس | D29: 1442/4/25 | E29: 1 | F29: 1 | G29: 0 | H29: 4 | I29: 0 | J29: 5 | K29: 2 | L29: 2 | M29: 1 | N29: 3 | O29: 1 | P29: 4 | R29: 0 | S29: 3 | U29: 6 | V29: 4 | W29: 6 | X29: 15 | Y29: 2 | Z29: 11 | AA29: 44

Sheet A7
D1: برنامج المتابعة الالكترونية التجريبي لحلقة عبد الله بن مسعود | H1: بمكة المكرمة | J1: التابعة لجمعية | K1: تحفيظ القرآن الكريم | N1: نسعى لمواكبة العصر في تطوراته لخدمة كتاب الله عزوجل | R1: 1 | S1: تعليما | T1: 2 | U1: وتعلما | V1: 3 | W1: وتقنيا | X1: على وفق خطة مرسومة | Z1: بالقرآن نرقى وبه نرتقي | AA1: أنشأه: عبد الرحمن إمام
C2: تاريخ بداية الحلقة | D2: معلم الحلقة | K2: عدد أسطر الدرس | L2: =SUM(I10:I29) -> 64 | N2: عدد صفحات الدرس المحفوظ | O2: =L2/15 -> 4.266666667 | Q2: عدد الأخطاء | R2: =SUM(J10:J29) -> 33 | U2: المواظبة | V2: السلوك | X2: نسبة الفصل الأول | Y2: المستوى الحالي | Z2: أبيات التحفة المحفوظة | AA2: معدل الدرجات
C3: 1441/12/18 | K3: عدد أسطر بداية السورة | L3: =SUM(L10:L29) -> 52 | N3: عدد صفحات بداية السورة | O3: =L3/15 -> 3.466666667 | Q3: عدد الأخطاء | R3: =SUM(M10:M29) -> 62 | T3: حضور مبكر | V3: عدد أيام التأخر | X3: =AA3 -> 138.3333333 | AA3: =AA5/6 -> 138.3333333
C4: اسم الطالب | D4: A7 | G4: اسم الحلقة | K4: عدد أسطر سورة قبل الدرس | L4: =SUM(O10:O29) -> 61 | N4: عدد صفحات سورة قبل الدرس | O4: =L4/15 -> 4.066666667 | Q4: عدد الأخطاء | R4: =SUM(P10:P29) -> 50 | T4: =COUNTIFS(G10:G29,"ح") -> 0 | V4: =COUNTIF(G10:G29,"ت") -> 0 | X4: نسبة الفصل الثاني | Y4: درجة أخر اختبار | Z4: أبيات الجزرية المحفوظة | AA4: مجموع النقاط
C5: رسالة خاصة بالطالب | G5: عبد الله بن مسعود رضي الله عنه | K5: عدد أسطر المراجعة | L5: =SUM(R10:R29) -> 31 | N5: عدد صفحات المراجعة | O5: =L5/15 -> 2.066666667 | Q5: عدد الأخطاء | R5: =SUM(S10:S29) -> 25 | T5: استئذان | V5: عدد أيام الغياب | AA5: =SUM(AA10:AA29) -> 830
C6: رسالة خاصة بالحلقة | G6: وقتها | H6: بعد صلاة العشاء عن بعد | N6: المجموع الكلي لصفحات المراجعة | T6: =COUNTIF(G10:G29,"م") -> 0 | V6: =COUNTIF(G10:G29,"غ") -> 0 | X6: المعدل الكلي | Z6: أبيات الشاطبية المحفوظة | AA6: النقاط المستبدلة
D7: مدة تجربة البرنامج من تاريخ 1442/3/22هـ إلى نهاية الفصل الأول 1442/4/25 هــ | N7: =O5+O4+O3 -> 9.6
C8: الأيام | D8: التاريخ | E8: المسار | F8: المقررات | G8: تحضير | H8: الدرس | I8: سطر | J8: خطأ | K8: بداية السورة | L8: سطر | M8: خطأ | N8: سورة قبل الدرس | O8: سطر | P8: خطأ | Q8: المراجعة | R8: سطر | S8: خطأ | T8: ملاحظات في التسميع | U8: الدرس 10 | V8: التجويد 10 | W8: بداية السورة 10 | X8: سورة قبل الدرس 10 | Y8: المراجعة 10 | Z8: المشاركة+ التفاعل 10 | AA8: مجموع النقاط اليومي | AB8: الملاحظات
C10: الاحد | D10: 1442/3/29 | E10: 2 | F10: 4 | G10: 2 | H10: 3 | I10: 4 | J10: 1 | K10: 2 | L10: 4 | M10: 3 | N10: 5 | O10: 3 | P10: 3 | R10: 1 | S10: 2 | U10: 3 | V10: 4 | W10: 3 | X10: 3 | Y10: 2 | Z10: 7 | AA10: =SUM(U10:Z10) -> 22
C11: الاثنين | D11: 1442/4/1 | E11: 1 | F11: 3 | G11: 3 | H11: 3 | I11: 0 | J11: 2 | K11: 3 | L11: 5 | M11: 5 | N11: 1 | O11: 5 | P11: 1 | R11: 3 | S11: 3 | U11: 14 | V11: 13 | W11: 15 | X11: 9 | Y11: 7 | Z11: 12 | AA11: 70
C12: الثلاثاء | D12: 1442/4/2 | E12: 0 | F12: 1 | G12: 5 | H12: 1 | I12: 5 | J12: 0 | K12: 4 | L12: 0 | M12: 2 | N12: 4 | O12: 0 | P12: 4 | R12: 2 | S12: 3 | U12: 11 | V12: 12 | W12: 0 | X12: 8 | Y12: 4 | Z12: 5 | AA12: 40
C13: الاربعاء | D13: 1442/4/3 | E13: 4 | F13: 2 | G13: 3 | H13: 2 | I13: 5 | J13: 0 | K13: 1 | L13: 5 | M13: 4 | N13: 0 | O13: 2 | P13: 2 | R13: 1 | S13: 0 | U13: 5 | V13: 0 | W13: 2 | X13: 0 | Y13: 0 | Z13: 0 | AA13: 7
C14: الخميس | D14: 1442/4/4 | E14: 2 | F14: 0 | G14: 5 | H14: 3 | I14: 1 | J14: 3 | K14: 0 | L14: 4 | M14: 4 | N14: 4 | O14: 1 | P14: 3 | R14: 3 | S14: 1 | U14: 6 | V14: 10 | W14: 3 | X14: 15 | Y14: 0 | Z14: 5 | AA14: 39
C15: الاحد | D15: 1442/4/7 | E15: 0 | F15: 2 | G15: 5 | H15: 1 | I15: 2 | J15: 1 | K15: 1 | L15: 4 | M15: 4 | N15: 1 | O15: 4 | P15: 0 | R15: 1 | S15: 3 | U15: 11 | V15: 1 | W15: 10 | X15: 9 | Y15: 7 | Z15: 15 | AA15: 53
C16: الاثنين | D16: 1442/4/8 | E16: 4 | F16: 4 | G16: 5 | H16: 2 | I16: 3 | J16: 3 | K16: 5 | L16: 0 | M16: 4 | N16: 2 | O16: 2 | P16: 1 | R16: 2 | S16: 2 | U16: 11 | V16: 5 | W16: 9 | X16: 12 | Y16: 10 | Z16: 14 | AA16: 61
C17: الثلاثاء | D17: 1442/4/9 | E17: 4 | F17: 2 | G17: 4 | H17: 5 | I17: 5 | J17: 4 | K17: 3 | L17: 1 | M17: 3 | N17: 1 | O17: 5 | P17: 5 | R17: 2 | S17: 0 | U17: 1 | V17: 15 | W17: 2 | X17: 9 | Y17: 8 | Z17: 13 | AA17: 48
C18: الاربعاء | D18: 1442/4/10 | E18: 4 | F18: 1 | G18: 0 | H18: 4 | I18: 3 | J18: 1 | K18: 1 | L18: 0 | M18: 4 | N18: 1 | O18: 2 | P18: 4 | R18: 2 | S18: 0 | U18: 11 | V18: 5 | W18: 11 | X18: 14 | Y18: 4 | Z18: 9 | AA18: 54
C19: الخميس | D19: 1442/4/11 | E19: 5 | F19: 5 | G19: 5 | H19: 4 | I19: 0 | J19: 5 | K19: 3 | L19: 4 | M19: 2 | N19: 5 | O19: 2 | P19: 2 | R19: 3 | S19: 3 | U19: 3 | V19: 9 | W19: 14 | X19: 3 | Y19: 15 | Z19: 14 | AA19: 58
C20: الاحد | D20: 1442/4/14 | E20: 3 | F20: 0 | G20: 5 | H20: 0 | I20: 5 | J20: 1 | K20: 1 | L20: 2 | M20: 2 | N20: 2 | O20: 4 | P20: 3 | R20: 0 | S20: 2 | U20: 5 | V20: 0 | W20: 8 | X20: 6 | Y20: 11 | Z20: 11 | AA20: 41
C21: الاثنين | D21: 1442/4/15 | E21: 1 | F21: 0 | G21: 4 | H21: 2 | I21: 3 | J21: 2 | K21: 3 | L21: 3 | M21: 4 | N21: 4 | O21: 2 | P21: 3 | R21: 3 | S21: 2 | U21: 13 | V21: 1 | W21: 0 | X21: 3 | Y21: 7 | Z21: 14 | AA21: 38
C22: الثلاثاء | D22: 1442/4/16 | E22: 4 | F22: 5 | G22: 1 | H22: 5 | I22: 3 | J22: 1 | K22: 1 | L22: 4 | M22: 4 | N22: 0 | O22: 5 | P22: 3 | R22: 0 | S22: 1 | U22: 6 | V22: 9 | W22: 5 | X22: 15 | Y22: 15 | Z22: 14 | AA22: 64
C23: الاربعاء | D23: 1442/4/17 | E23: 3 | F23: 0 | G23: 1 | H23: 2 | I23: 0 | J23: 4 | K23: 3 | L23: 1 | M23: 5 | N23: 4 | O23: 5 | P23: 5 | R23: 0 | S23: 0 | U23: 2 | V23: 0 | W23: 5 | X23: 11 | Y23: 1 | Z23: 0 | AA23: 19
C24: الخميس | D24: 1442/4/18 | E24: 4 | F24: 3 | G24: 1 | H24: 5 | I24: 3 | J24: 1 | K24: 5 | L24: 2 | M24: 2 | N24: 2 | O24: 1 | P24: 0 | R24: 0 | S24: 0 | U24: 2 | V24: 4 | W24: 9 | X24: 0 | Y24: 12 | Z24: 6 | AA24: 33
C25: الاحد | D25: 1442/4/21 | E25: 5 | F25: 4 | G25: 3 | H25: 0 | I25: 3 | J25: 2 | K25: 1 | L25: 1 | M25: 2 | N25: 1 | O25: 5 | P25: 4 | R25: 2 | S25: 1 | U25: 1 | V25: 3 | W25: 0 | X25: 6 | Y25: 9 | Z25: 14 | AA25: 33
C26: الاثنين | D26: 1442/4/22 | E26: 3 | F26: 0 | G26: 1 | H26: 0 | I26: 5 | J26: 2 | K26: 0 | L26: 2 | M26: 3 | N26: 0 | O26: 3 | P26: 1 | R26: 1 | S26: 0 | U26: 7 | V26: 1 | W26: 9 | X26: 4 | Y26: 12 | Z26: 3 | AA26: 36
C27: الثلاثاء | D27: 1442/4/23 | E27: 3 | F27: 4 | G27: 2 | H27: 2 | I27: 5 | J27: 0 | K27: 5 | L27: 1 | M27: 2 | N27: 5 | O27: 4 | P27: 0 | R27: 2 | S27: 1 | U27: 0 | V27: 0 | W27: 5 | X27: 0 | Y27: 5 | Z27: 0 | AA27: 10
C28: الاربعاء | D28: 1442/4/24 | E28: 5 | F28: 0 | G28: 1 | H28: 0 | I28: 5 | J28: 0 | K28: 3 | L28: 4 | M28: 1 | N28: 4 | O28: 5 | P28: 4 | R28: 2 | S28: 0 | U28: 5 | V28: 8 | W28: 9 | X28: 15 | Y28: 12 | Z28: 2 | AA28: 51
C29: الخميس | D29: 1442/4/25 | E29: 5 | F29: 4 | G29: 2 | H29: 0 | I29: 4 | J29: 0 | K29: 1 | L29: 5 | M29: 2 | N29: 4 | O29: 1 | P29: 2 | R29: 1 | S29: 1 | U29: 13 | V29: 6 | W29: 11 | X29: 6 | Y29: 9 | Z29: 8 | AA29: 53

Sheet Find_Sheet
A2: A3
D5: مدة تجربة البرنامج من تاريخ 1442/3/22هـ إلى نهاية الفصل الأول 1442/4/25 هــ
C6: الأيام | D6: التاريخ | E6: المسار | F6: المقررات | G6: تحضير | H6: الدرس | I6: سطر | J6: خطأ | K6: بداية السورة | L6: سطر | M6: خطأ | N6: سورة قبل الدرس | O6: سطر | P6: خطأ | Q6: المراجعة | R6: سطر | S6: خطأ | T6: ملاحظات في التسميع | U6: الدرس 10 | V6: التجويد 10 | W6: بداية السورة 10 | X6: سورة قبل الدرس 10 | Y6: المراجعة 10 | Z6: المشاركة+ التفاعل 10 | AA6: مجموع النقاط اليومي | AB6: الملاحظات
C8: الاحد | D8: 1442/3/29 | E8: 3 | F8: 3 | G8: 5 | H8: 2 | I8: 1 | J8: 0 | K8: 0 | L8: 1 | M8: 3 | N8: 3 | O8: 3 | P8: 0 | R8: 3 | S8: 2 | U8: 14 | V8: 0 | W8: 2 | X8: 11 | Y8: 11 | Z8: 5
C9: الاثنين | D9: 1442/4/1 | E9: 2 | F9: 2 | G9: 2 | H9: 3 | I9: 5 | J9: 4 | K9: 4 | L9: 1 | M9: 0 | N9: 4 | O9: 2 | P9: 5 | R9: 2 | S9: 2 | U9: 1 | V9: 3 | W9: 6 | X9: 7 | Y9: 5 | Z9: 1 | AA9: 23
C10: الثلاثاء | D10: 1442/4/2 | E10: 2 | F10: 0 | G10: 5 | H10: 0 | I10: 3 | J10: 1 | K10: 2 | L10: 5 | M10: 2 | N10: 5 | O10: 2 | P10: 2 | R10: 0 | S10: 3 | U10: 7 | V10: 2 | W10: 3 | X10: 8 | Y10: 3 | Z10: 12 | AA10: 35
C11: الاربعاء | D11: 1442/4/3 | E11: 3 | F11: 5 | G11: 0 | H11: 4 | I11: 5 | J11: 2 | K11: 1 | L11: 3 | M11: 4 | N11: 0 | O11: 3 | P11: 2 | R11: 1 | S11: 3 | U11: 1 | V11: 4 | W11: 5 | X11: 13 | Y11: 6 | Z11: 6 | AA11: 35
C12: الخميس | D12: 1442/4/4 | E12: 4 | F12: 0 | G12: 1 | H12: 0 | I12: 1 | J12: 2 | K12: 2 | L12: 5 | M12: 1 | N12: 1 | O12: 5 | P12: 4 | R12: 3 | S12: 2 | U12: 6 | V12: 9 | W12: 7 | X12: 7 | Y12: 10 | Z12: 6 | AA12: 45
C13: الاحد | D13: 1442/4/7 | E13: 3 | F13: 0 | G13: 1 | H13: 3 | I13: 2 | J13: 2 | K13: 3 | L13: 0 | M13: 5 | N13: 4 | O13: 3 | P13: 1 | R13: 3 | S13: 3 | U13: 2 | V13: 1 | W13: 14 | X13: 15 | Y13: 13 | Z13: 2 | AA13: 47
C14: الاثنين | D14: 1442/4/8 | E14: 2 | F14: 5 | G14: 5 | H14: 0 | I14: 2 | J14: 3 | K14: 3 | L14: 2 | M14: 0 | N14: 3 | O14: 2 | P14: 2 | R14: 3 | S14: 0 | U14: 1 | V14: 6 | W14: 15 | X14: 6 | Y14: 10 | Z14: 5 | AA14: 43
C15: الثلاثاء | D15: 1442/4/9 | E15: 0 | F15: 2 | G15: 5 | H15: 2 | I15: 4 | J15: 1 | K15: 5 | L15: 4 | M15: 5 | N15: 2 | O15: 3 | P15: 0 | R15: 0 | S15: 0 | U15: 10 | V15: 15 | W15: 10 | X15: 2 | Y15: 10 | Z15: 13 | AA15: 60
C16: الاربعاء | D16: 1442/4/10 | E16: 3 | F16: 2 | G16: 0 | H16: 3 | I16: 1 | J16: 5 | K16: 3 | L16: 0 | M16: 1 | N16: 1 | O16: 4 | P16: 4 | R16: 0 | S16: 0 | U16: 15 | V16: 0 | W16: 3 | X16: 14 | Y16: 0 | Z16: 13 | AA16: 45
C17: الخميس | D17: 1442/4/11 | E17: 3 | F17: 3 | G17: 1 | H17: 0 | I17: 5 | J17: 5 | K17: 0 | L17: 4 | M17: 3 | N17: 5 | O17: 3 | P17: 5 | R17: 1 | S17: 0 | U17: 3 | V17: 6 | W17: 7 | X17: 12 | Y17: 13 | Z17: 3 | AA17: 44
C18: الاحد | D18: 1442/4/14 | E18: 0 | F18: 0 | G18: 0 | H18: 4 | I18: 1 | J18: 2 | K18: 0 | L18: 4 | M18: 0 | N18: 5 | O18: 4 | P18: 0 | R18: 0 | S18: 2 | U18: 14 | V18: 13 | W18: 15 | X18: 10 | Y18: 9 | Z18: 9 | AA18: 70
C19: الاثنين | D19: 1442/4/15 | E19: 3 | F19: 0 | G19: 5 | H19: 5 | I19: 3 | J19: 0 | K19: 4 | L19: 5 | M19: 3 | N19: 3 | O19: 4 | P19: 5 | R19: 1 | S19: 1 | U19: 3 | V19: 9 | W19: 2 | X19: 15 | Y19: 8 | Z19: 6 | AA19: 43
C20: الثلاثاء | D20: 1442/4/16 | E20: 1 | F20: 0 | G20: 0 | H20: 4 | I20: 4 | J20: 4 | K20: 5 | L20: 5 | M20: 0 | N20: 5 | O20: 5 | P20: 3 | R20: 3 | S20: 1 | U20: 6 | V20: 11 | W20: 12 | X20: 0 | Y20: 3 | Z20: 2 | AA20: 34
C21: الاربعاء | D21: 1442/4/17 | E21: 1 | F21: 2 | G21: 3 | H21: 3 | I21: 0 | J21: 1 | K21: 1 | L21: 0 | M21: 1 | N21: 2 | O21: 2 | P21: 5 | R21: 1 | S21: 2 | U21: 14 | V21: 2 | W21: 0 | X21: 7 | Y21: 15 | Z21: 5 | AA21: 43
C22: الخميس | D22: 1442/4/18 | E22: 2 | F22: 3 | G22: 3 | H22: 1 | I22: 2 | J22: 4 | K22: 0 | L22: 5 | M22: 5 | N22: 1 | O22: 1 | P22: 3 | R22: 2 | S22: 2 | U22: 1 | V22: 4 | W22: 6 | X22: 3 | Y22: 0 | Z22: 15 | AA22: 29
C23: الاحد | D23: 1442/4/21 | E23: 5 | F23: 0 | G23: 1 | H23: 2 | I23: 0 | J23: 3 | K23: 4 | L23: 4 | M23: 2 | N23: 0 | O23: 4 | P23: 3 | R23: 3 | S23: 0 | U23: 14 | V23: 1 | W23: 14 | X23: 10 | Y23: 4 | Z23: 7 | AA23: 50
C24: الاثنين | D24: 1442/4/22 | E24: 4 | F24: 4 | G24: 0 | H24: 4 | I24: 4 | J24: 4 | K24: 4 | L24: 0 | M24: 4 | N24: 2 | O24: 1 | P24: 4 | R24: 2 | S24: 2 | U24: 6 | V24: 0 | W24: 11 | X24: 15 | Y24: 10 | Z24: 8 | AA24: 50
C25: الثلاثاء | D25: 1442/4/23 | E25: 5 | F25: 5 | G25: 5 | H25: 4 | I25: 0 | J25: 3 | K25: 0 | L25: 2 | M25: 4 | N25: 4 | O25: 4 | P25: 5 | R25: 3 | S25: 2 | U25: 14 | V25: 8 | W25: 7 | X25: 2 | Y25: 9 | Z25: 8 | AA25: 48
C26: الاربعاء | D26: 1442/4/24 | E26: 4 | F26: 5 | G26: 5 | H26: 0 | I26: 4 | J26: 1 | K26: 4 | L26: 1 | M26: 5 | N26: 3 | O26: 0 | P26: 1 | R26: 0 | S26: 2 | U26: 6 | V26: 14 | W26: 14 | X26: 9 | Y26: 11 | Z26: 12 | AA26: 66
C27: الخميس | D27: 1442/4/25 | E27: 5 | F27: 2 | G27: 4 | H27: 2 | I27: 5 | J27: 2 | K27: 2 | L27: 5 | M27: 0 | N27: 5 | O27: 5 | P27: 0 | R27: 1 | S27: 1 | U27: 13 | V27: 15 | W27: 10 | X27: 9 | Y27: 6 | Z27: 7 | AA27: 60
